Workbook

Sheet Main
B11: OpenVSP-Connect
B12: Connect YOUR Aircraft Design Tool with Vehicle Sketch Pad from NASA
B20: OpenVSP-Connect started as an interface tool between ANY aircraft design tool and Open Vehicle Sketch Pad (openVSP) from NASA.
B21: OpenVSP renders a 3D visualization of an aircraft. Follow this link for more information on OpenVSP:
B22: http://www.openVSP.org
B24: OpenVSP-Connect still runs on OpenVSP 2.2.4 for Win 32.
B25: This version of OpenVSP is provided together with the OpenVSP-Connect download.
B27: In the order of 47 core parameters of the aircraft are used to calculate the input parameters required by OpenVSP to sketch a passenger aircraft.
B28: For each parameter a proposed value is given and automatically applied as long as the user does not specify his/her own value.
B30: By using all default values, the program works in "Automatic Mode":
B31: Based on just two input values "Cruise Mach Number" and "Number of Passengers"
B32: an aircraft can be sketched automatically based on passenger aircraft statistics.
B34: For further information, documentation, and software download please refer to:
B35: http://OpenVSP.ProfScholz.de
B37: OpenVSP-Connect is a project by Aircraft Design and Systems Group (AERO) at Hamburg University of Applied Sciences (HAW Hamburg).
B39: Copyright © 2020, Version 1.1
B40: Veselin Pavlov, Tahir Sousa and Dieter Scholz
B47: OpenVSP-Connect is free software: you can redistribute it and/or modify
B48: it under the terms of the GNU General Public License as published by
B49: the Free Software Foundation, License Version 3.
B51: OpenVSP-Connect is distributed in the hope that it will be useful,
B52: but WITHOUT ANY WARRANTY; without even the implied warranty of
B53: MERCHANTABILITY or FITNESS FOR A PARTICULAR PURPOSE.
B54: See the GNU General Public License for more details.
B56: http://www.gnu.org/licenses/

Sheet Input
B1: Input of Aircraft Design Parameters
B2: Enter the results from any aircraft sizing or aircraft conceptual design tool. If data is unknown, use default values as proposed here.
B4: Aircraft Name | C4: AirbusA330
B6: Description | C6: Press "3D-Visualization" to draw the A330. For data and background see Bryan Wied, 2024. Nachentwurf - Airbus A330-200. - Available from: https://nbn-resolving.org/urn:nbn:de:gbv:18302-aero2024-06-18.012
C7: "Haus
A8: 1. | B8: Action buttons
G10: Path to OpenVSP Executable | H10: D:\Homepage\OpenVSP\vsp.exe
G11: Path to OpenVSP File | H11: D:\Homepage\OpenVSP\A330.vsp
G12: Path to your Aircraft Design tool/data | H12: D:\Homepage\OpenVSP
G13: Name of your Aircraft Design tool/data | H13: AircraftParameterContainerFull.xlsx
A18: 2. | B18: Requirements
B20: Number of Passangers | C20: np | D20: 244 | E20: [-]
B21: Cruise Mach Number | C21: MCR | D21: 0.86 | E21: [-]
G22: Max. Operating Mach Number | H22: MMO | I22: =M_CR + M22 -> 0.9 | J22: [-] | K22: Mach number constant | L22: kM,MO | M22: 0.04 | N22: [-]
A24: 3. | B24: Engine
B26: Engine Type | D26: Jet | E26: [-] | Z26: Average Disc Loading | AA26: 131 | AB26: [kW*m/kg]
B27: Number of engines | C27: ne | D27: 2 | E27: [-] | Z27: Disc Loading density | AA27: 1.225 | AB27: [kg/m3]
B29: =IF(Type_e="Jet","Edit this section","Do not edit this section") -> Edit this section
B30: Jet
B31: Total Engine Thrust | C31: TTO | D31: 605 | E31: [kN] | F31: <<<<<< | G31: Total Engine Thrust | H31: TTO | I31: =(0.00110987068294407*n_p^2+0.393331615513631*n_p)*2.63967403072373+20.762394999916 -> 448.5220341 | J31: [kN]
B32: Jet engine diameter | C32: de,j | D32: 3.38 | E32: [m] | F32: <<<<<< | G32: Engine diameter | H32: de,j | I32: =(6.005*T_TO/n_e + 934.88)/1000 -> 2.7513925 | J32: [m]
B33: Jet engine length | C33: le,j | D33: =I33 -> 4.63968375 | E33: [m] | F33: <<<<<< | G33: Engine length | H33: le,j | I33: =(8.8935*T_TO/n_e + 1949.4)/1000 -> 4.63968375 | J33: [m]
B34: Cowling cover | D34: 50 | E34: % of core section
B36: =IF(Type_e="Propeller","Edit this section","Do not edit this section") -> Do not edit this section
B37: Propeller
B38: Total Engine Power | C38: PTO | D38: =I38 -> 11989.47689 | E38: [kW] | F38: <<<<<< | G38: Total Engine Power | H38: PTO | I38: =274.257204134621*(0.362865751969511*n_p)^0.842207666235257+20.67308469625 -> 11989.47689 | J38: [kW]
B39: Number of blades | C39: nb,p | D39: 6 | E39: [-]
B40: Prop engine diameter | C40: de,p | D40: =I40 -> 0.8364421839 | E40: [m] | F40: <<<<<< | G40: Engine diameter | H40: de,p | I40: =(0.049*P_TO/n_e + 542.7)/1000 -> 0.8364421839 | J40: [m]
B41: Prop engine length | C41: le,p | D41: =I41 -> 3.55227421 | E41: [m] | F41: <<<<<< | G41: Prop Length | H41: le,p | I41: =(0.328*P_TO/n_e + 1586)/1000 -> 3.55227421 | J41: [m]
B42: Prop rotor diameter | C42: de,p,r | D42: =I42 -> 3.891002864 | E42: [m] | F42: <<<<<< | G42: Prop rotor diameter | H42: de,p,r | I42: =2*SQRT((P_TO/n_e)/(DL_av*DL_den))/PI() -> 3.891002864 | J42: [m]
A44: 4. | B44: Wing
B46: Wing Type | C46: TypeW | D46: Double-trapezoidal | E46: [-]
B47: Total Area | C47: SW | D47: 361.6 | E47: [m2] | F47: <<<<<< | G47: Toral Area Suggestion | H47: SW | I47: =IF(Type_e="Jet",1.45473418814703*(0.00110987068294407*n_p^2+0.393331615513631*n_p)+20.67308469625,8.92220992837205*(0.362865751969511*n_p)^0.619379632830338) -> 256.4130147 | J47: [m2]
B48: Total Aspect ratio | C48: AW | D48: 10.05 | E48: [-]
G49: Total Span | H49: bw | I49: =SQRT(S_W*A_W) -> 60.28333103 | J49: [m]
B50: =IF(Type_W="Trapezoidal", "Wing 25% Sweep", "Outboard 25% Sweep") -> Outboard 25% Sweep | C50: j25,W,o | D50: 29.07 | E50: [˚] | F50: <<<<<< | G50: 25% Wing sweep suggestion | H50: j25,W,o | I50: =IF(M_CR<0.54,0,27926.089*M_CR^6-133114.861*M_CR^5+262686.398*M_CR^4-274864.452*M_CR^3+160851.684*M_CR^2-49806.55*M_CR+6356.421) -> 28.26638852 | J50: [˚]
B51: Taper Ratio | C51: λW | D51: 0.22 | E51: [-] | F51: <<<<<< | G51: Taper Ratio Suggestion | H51: λW | I51: =0.45*EXP(-0.0375*phi_25.W.o) -> 0.1512785112 | J51: [-]
G52: Root Chord | H52: cr,w | I52: =(S_W - (b_W/2)*b_W.i*(TAN(phi_100.W.i*PI()/180) - TAN(phi_0.W.i*PI()/180)) )/ (b_W/2 + b_W.i + lam_W*(b_W/2 - b_W.i)) -> 12.10396065 | J52: [m]
G53: Tip Chord | H53: ct,w | I53: =lam_W*c_r.W -> 2.662871344 | J53: [m]
G54: =IF(Type_W="Trapezoidal", "Wing Leading edge Sweep", "Outboard Leading edge Sweep") -> Outboard Leading edge Sweep | H54: j0,W,o | I54: =ATAN(TAN(phi_25.W.o*PI()/180)-(2/A_W.o)*((0-25)/100*(1-lam_W.o)/(1+lam_W.o)))*180/PI() -> 30.98165259 | J54: [˚]
G55: Outboard Trailing edge sweep | H55: j100,W,o | I55: =ATAN(TAN(phi_25.W.o*PI()/180)-2/A_W.o*((100-25)/100*(1-lam_W.o)/(1+lam_W.o)))*180/PI() -> 22.89697882 | J55: [m]
B56: Airfoil thickness ratio | C56: (t\c) | D56: 0.15 | E56: [-] | F56: <<<<<< | G56: Thickness ratio | H56: (t\c) | I56: =-0.045*ATAN(3*M_CR - 2.732) + 0.099 -> 0.1057880413 | J56: [-] | Z56: Wing MAC | AA56: =c_W.k+ (0.35*(b_W/2) - b_W.i)*(TAN(phi_25.W.o*PI()/180) - TAN(phi_0.W.o*PI()/180)) -> 6.272407816 | AB56: [-]
B57: X position of wing | C57: RelPosW,x | D57: =I57 -> 31.5 | E57: % of fuselage length | F57: <<<<<< | G57: X position of wing | I57: 31.5 | J57: % of fuselage length | Z57: Outer Aspect Ratio | AA57: =(b_W-2*b_W.i)/(c_t.W+c_W.k) -> 4.567156018 | AB57: [-]
B58: Z position of wing | C58: RelPosW,z | D58: 25 | E58: % of fuselage diameter | Z58: Outer Taper Ratio | AA58: =c_t.W/c_W.k -> 0.4218301212 | AB58: [-]
B59: Outboard dihedral angle | C59: ГW.o | D59: 5.1 | E59: [˚] | F59: <<<<<< | G59: Outboard dihedral angle | H59: ГW.o | I59: =6.9137 - (7.46*RelPos_W.z/100) - (0.1153*phi_25.W.o) -> 1.696929 | J59: [˚] | Z59: Inboard Half-Span | AA59: =eta_k.W*(b_W/2) -> 9.645332965 | AB59: [m]
Z60: Kink chord | AA60: =c_r.W + b_W.i*(TAN(phi_100.W.i*PI()/180) - TAN(phi_0.W.i*PI()/180)) -> 6.31266287 | AB60: [m]
B61: =IF(Type_W= "Double-trapezoidal","Edit this section","Do not edit this section") -> Edit this section
B62: Relative kink position | C62: ηk,W | D62: =I62 -> 0.32 | E62: [-] | F62: <<<<<< | G62: Relative kink position | H62: ηk,W | I62: =IF(Type_W = "Trapezoidal", 0.5, M62) -> 0.32 | J62: [-] | K62: Relative kink constant | L62: kη,k,W | M62: 0.32 | N62: [-]
B63: Inboard Leading edge Sweep | C63: j0,W,i | D63: =I63 -> 30.98165259 | E63: [˚] | F63: <<<<<< | G63: Inboard Leading edge Sweep | H63: j0,W,i | I63: =phi_0.W.o -> 30.98165259 | J63: [˚]
B64: Inboard Trailing edge Sweep | C64: j100,W,i | D64: =I64 -> 0 | E64: [˚] | F64: <<<<<< | G64: Inboard Trailing edge Sweep | H64: j100,W,i | I64: =IF(Type_W = "Double-trapezoidal", 0, phi_100.W.o) -> 0 | J64: [˚]
B65: Inboard dihedral angle | C65: ГW.i | D65: =I65 -> 5.1 | E65: [˚] | F65: <<<<<< | G65: Inboard dihedral angle | H65: ГW.i | I65: =ggam_W.o -> 5.1 | J65: [˚]
A67: 5. | B67: Fuselage
B69: Fuselage diameter | C69: dF | D69: 5.831 | E69: [m] | F69: <<<<<< | G69: Fuselage diameter | H69: dF | I69: =IF(M69<7,0.045*(M69*0.495+2*0.025+0.4826)+0.084+(M69*0.495+2*0.025+0.4826),(M69*0.495+2*0.025+2*0.4826+2*0.15)*0.045+0.084+(M69*0.495+2*0.025+2*0.4826+2*0.15)) -> 5.079309 | J69: [m] | K69: Number of seats per row | L69: nSA | M69: =ROUND(0.45*SQRT(n_p),0) -> 7
B70: Fuselage length | C70: LF | D70: 58.31 | E70: [m] | F70: <<<<<< | G70: Fuselage length | H70: LF | I70: =M70*d_F -> 64.141 | J70: [m] | K70: Slenderness ratio | L70: kl,F\d,F | M70: 11 | N70: [-]
B71: Nose length | C71: Lnose,F | D71: =I71 -> 11.35033305 | E71: [m] | F71: <<<<<< | G71: Nose length | H71: Lnose,F | I71: =(44.405*(M_MO^2) -71.625*M_MO +30.441)*d_F -> 11.35033305 | J71: [m]
B72: Cockpit length | C72: Lcock,F | D72: =I72 -> 3.79015 | E72: [m] | F72: <<<<<< | G72: Cockpit length | H72: Lcock,F | I72: =M72*d_F -> 3.79015 | J72: [m] | K72: Cockpit length constant | L72: kl,cock,F | M72: 0.65 | N72: [-]
B73: Fuselage aft length | C73: Laft,F | D73: =I73 -> 19.2423 | E73: [m] | F73: <<<<<< | G73: Fuselage tail length | H73: Ltail,F | I73: =M73*d_F -> 19.2423 | J73: [m] | K73: Fuselage tailcone constant | L73: kl,tail,F | M73: 3.3 | N73: [-]
G74: Cylinder length | H74: Lc,F | I74: =l_F-D71-D73 -> 27.71736695 | J74: [m]
A76: 6. | B76: Horizontal Tail
B78: Total aspect ratio | C78: AH | D78: 5 | E78: [-] | F78: <<<<<< | G78: Aspect Ratio | H78: AH | I78: =M78*A_W -> 5.562675 | J78: [-] | K78: HT Aspect ratio constant | L78: kA,H | M78: 0.5535 | N78: [-]
B79: Taper ratio | C79: λH | D79: 0.33 | E79: [-] | F79: <<<<<< | G79: Taper Ratio | H79: λH | I79: =M79*lam_W -> 0.264 | J79: [-] | K79: HT taper ratio constant | L79: kλ,H | M79: 1.2 | N79: [-]
B80: Total area | C80: SH | D80: 82.81 | E80: [m2] | F80: <<<<<< | G80: Area | H80: SH | I80: =100*C_H*S_W*c_MAC.W/((RelPos_H.x-RelPos_W.x)*l_F) -> 73.4233201 | J80: [m2] | K80: Tail volume coefficient of HT | L80: CH | M80: 0.991 | N80: [-]
B81: Sweep | C81: j25,H | D81: 34.07 | E81: [˚] | F81: <<<<<< | G81: Sweep | H81: j25,H | I81: =phi_25.W.o+M81 -> 34.07 | J81: [˚] | K81: HT 25% sweep constant | L81: Δj25,H | M81: 5 | N81: [-]
B82: Dihedral angle | C82: ГH | D82: 6 | E82: [˚] | F82: <<<<<< | G82: Dihedral angle | H82: ГH | I82: =0 -> 0 | J82: [˚]
B83: X position of HT | C83: RelPosH,x | D83: =I83 -> 84 | E83: % of fuselage length | F83: <<<<<< | G83: X position of HT | H83: RelPosH,x | I83: 84 | J83: % of fuselage length
B84: Z position of HT | C84: RelPosH,z | D84: =I84 -> -15 | E84: % of VT span | F84: <<<<<< | G84: Z position of HT | H84: RelPosH,z | I84: -15 | J84: % of VT span
A86: 7. | B86: Vertical Tail
B88: Dorsal fin? | C88: Typedf | D88: no | E88: [-]
B90: Aspect Ratio | C90: AV | D90: 1.6 | E90: [-] | F90: <<<<<< | G90: Aspect Ratio | H90: AV | I90: =IF(RelPos_H.z<0,2,M90 - (M90-Q90)*(RelPos_H.z/100)) -> 2 | J90: [-] | K90: Aspect ratio for conv. Tail | L90: kA,V,1 | M90: 2 | N90: [-] | O90: Aspect ratio for t-tail | P90: kA,V,2 | Q90: 0.7 | R90: [-]
B91: Taper Ratio | C91: λV | D91: 0.36 | E91: [-] | F91: <<<<<< | G91: Taper Ratio | H91: λV | I91: =IF(RelPos_H.z<0,0.3,M91 + (Q91-M91)*RelPos_H.z/100) -> 0.3 | J91: [-] | K91: Taper ratio for conv. Tail | L91: kλ,V,1 | M91: 0.3 | N91: [-] | O91: Taper ratio for T-tail | P91: kλ,V,2 | Q91: 1 | R91: [-]
B92: Area | C92: SV | D92: 55.07 | E92: [m2] | F92: <<<<<< | G92: Area | H92: SV | I92: =100*C_V*S_W*b_W/((RelPos_H.x-RelPos_W.x)*l_F) -> 56.46723288 | J92: [m2] | K92: Tail volume coefficient of VT | L92: CV | M92: 0.0793 | N92: [-]
G93: Root Chord | H93: cr,V | I93: =2*S_V/(b_V*(lam_V+1)) -> 8.627572832 | J93: [m]
G94: Tip Chord | H94: ct,V | I94: =lam_V*c_r.V -> 3.10592622 | J94: [m]
G95: Span | H95: bV | I95: =SQRT(S_V*A_V) -> 9.386799241 | J95: [m]
B97: 25% Sweep | C97: j25,V | D97: 45 | E97: [˚] | F97: <<<<<< | G97: 25% Sweep | H97: j25,V | I97: =phi_25.H*(0.003*(phi_25.W.o^2) - 0.1847*phi_25.W.o + 4.0448) -> 41.2507874 | J97: [˚]
G98: Leading edge Sweep | H98: j0,V | I98: =ATAN(TAN(phi_25.V*PI()/180)-2/A_V*((0-25)/100*(1-lam_V)/(1+lam_V)))*180/PI() -> 48.91824886 | J98: [˚]
G99: Trailing edge Sweep | H99: j100,V | I99: =ATAN(TAN(phi_25.V*PI()/180)-2/A_V*((100-25)/100*(1-lam_V)/(1+lam_V)))*180/PI() -> 29.19748605 | J99: [˚]
B100: X position of VT | C100: RelPosV,x | D100: 82 | E100: % of fuselage length | F100: <<<<<< | G100: X position of VT | H100: RelPosV,x | I100: 76.5 | J100: % of fuselage length
B102: Dorsal fin extension
B103: =IF(Type_df="Yes","Edit this section","Do not edit this section") -> Do not edit this section
B104: Dorsal fin extension chord from VT | C104: cr,df | D104: =I104 -> 4.960854379 | E104: [m] | F104: <<<<<< | G104: Dorsal fin extension chord from VT | H104: cr,df | I104: =IF(Type_e = "Jet", 0.575*c_r.V, 2.699*c_r.V) -> 4.960854379 | J104: [m]
B105: Dorsal fin Leading edge sweep | C105: j0,df | D105: =I105 -> 74.87816664 | E105: [°] | F105: <<<<<< | G105: Dorsal fin Leading edge sweep | H105: j0,df | I105: =IF(Type_e = "Jet", 59.42 + 0.316*phi_0.V, 70.49 + 0.141*phi_0.V) -> 74.87816664 | J105: [°]
G106: Span | H106: bdf | I106: =c_r.df/(TAN(phi_0.df*PI()/180) - TAN(phi_0.V*PI()/180)) -> 1.942767589 | J106: [m]
A108: 8. | B108: Positions of Aircraft Components
B110: Component | C110: X | D110: Y | E110: Z | G110: Component | H110: X | I110: Y | J110: Z
B111: Horizontal tail | C111: =H111 -> 48.9804 | D111: =I111 -> 0 | E111: =J111 -> 1.507480114 | F111: <<<<<< | G111: Horizontal tail | H111: =(RelPos_H.x*l_F/100) -> 48.9804 | I111: 0 | J111: =pos_V.z+(RelPos_H.z/100)*b_V -> 1.507480114
B112: Vertical tail | C112: =H112 -> 47.8142 | D112: =I112 -> 0 | E112: =J112 -> 2.9155 | F112: <<<<<< | G112: Vertical tail | H112: =RelPos_V.x*l_F/100 -> 47.8142 | I112: 0 | J112: =d_F/2 -> 2.9155
B113: Wing | C113: 18.36765 | D113: 0 | E113: -1.45775 | F113: <<<<<< | G113: Wing | H113: =RelPos_W.x*l_F/100 -> 18.36765 | I113: 0 | J113: =-d_F/2 +(RelPos_W.z/100)*d_F -> -1.45775
B114: Fuselage | C114: 0 | D114: 0 | E114: 0 | F114: <<<<<< | G114: Fuselage | H114: 0 | I114: 0 | J114: 0
B115: ="Jet " & Convert!$B$1213 -> Jet Engine 2 | C115: 23.1931466 | D115: 9.823168791 | E115: -3.171055541 | F115: <<<<<< | G115: ="Jet " & Convert!$B$1213 -> Jet Engine 2 | H115: =IF(n_e=1,pos_V.x,pos_W.x+(pos_e.j1.y*TAN(phi_0.W.o*PI()/180)) - l_e.j.pylon*TAN(phi_0.e.j.pylon*PI()/180)) -> 23.1931466 | I115: =IF(n_e=1,0,IF(OR(n_e=2,n_e=3),M115,Q115))*(b_W/2)/100 -> 9.823168791 | J115: =IF(n_e=1,pos_V.z+d_e.j/2,pos_W.z+ pos_e.j1.y*TAN(ggam_W.o*PI()/180)-d_e.j/2-l_e.j.pylon) -> -3.171055541 | K115: y-pos constant for 2 engines | L115: kpos,e,j1,y | M115: 32.59 | N115: [%] | O115: y-pos constant for 4 engines | P115: kpos,e,j1,y | Q115: 39.3 | R115: [%]
B116: ="Jet " & Convert!$B$1746 -> Jet Engine 1 | C116: 23.1931466 | D116: -9.823168791 | E116: -3.171055541 | F116: <<<<<< | G116: ="Jet " & Convert!$B$1746 -> Jet Engine 1 | H116: =IF(n_e=1,"N/A",pos_W.x-(pos_e.j2.y*TAN(phi_0.W.o*PI()/180)) - l_e.j.pylon*TAN(phi_0.e.j.pylon*PI()/180)) -> 23.1931466 | I116: =IF(n_e=1,"N/A",-pos_e.j1.y) -> -9.823168791 | J116: =IF(n_e=1,"N/A",pos_e.j1.z) -> -3.171055541
B117: ="Jet " & Convert!$B$2279 -> Jet Engine 4 | C117: N/A | D117: N/A | E117: N/A | F117: <<<<<< | G117: ="Jet " & Convert!$B$2279 -> Jet Engine 4 | H117: =IF(OR(n_e=1,n_e=2),"N/A",IF(n_e=3,pos_V.x,pos_W.x+(pos_e.j3.y*TAN(phi_0.W.o*PI()/180)) - l_e.j.pylon*TAN(phi_0.e.j.pylon*PI()/180))) -> N/A | I117: =IF(OR(n_e=1,n_e=2),"N/A",IF(n_e=3,0,M117*(b_W/2)/100)) -> N/A | J117: =IF(OR(n_e=1,n_e=2),"N/A",IF(n_e=3,pos_V.z + 0.65*d_e.j,pos_W.z+ pos_e.j3.y*TAN(ggam_W.o*PI()/180)-d_e.j/2-l_e.j.pylon)) -> N/A | K117: y-pos constant for 4 engines | L117: kpos,e,j3,y | M117: 67.27 | N117: [%]
B118: ="Jet " & Convert!$B$2812 -> Jet Engine 1 | C118: N/A | D118: N/A | E118: N/A | F118: <<<<<< | G118: ="Jet " & Convert!$B$2812 -> Jet Engine 1 | H118: =IF(n_e=4,pos_W.x-(pos_e.j4.y*TAN(phi_0.W.o*PI()/180)) - l_e.j.pylon*TAN(phi_0.e.j.pylon*PI()/180),"N/A") -> N/A | I118: =IF(OR(n_e=1,n_e=2,n_e=3),"N/A",-pos_e.j3.y) -> N/A | J118: =IF(n_e=4,pos_e.j3.z,"N/A") -> N/A
B119: ="Prop " & Convert!$B$1213 -> Prop Engine 2 | C119: 20.95063848 | D119: 5.781001432 | E119: -1.360030459 | F119: <<<<<< | G119: ="Prop " & Convert!$B$1213 -> Prop Engine 2 | H119: =IF(n_e=1,-0.1*l_e.p,pos_W.x+(pos_e.p1.y*TAN(phi_0.W.o*PI()/180) - 0.25*l_e.p)) -> 20.95063848 | I119: =IF(n_e=1,pos_F.y,IF(OR(n_e=2,n_e=3),d_F/2 + M119 + d_e.p.r/2,d_F/2 + Q119 + d_e.p.r/2)) -> 5.781001432 | J119: =IF(n_e=1,pos_nose.F.z,pos_W.z-d_e.p/2 + pos_e.p1.y*TAN(ggam_W.o*PI()/180)) -> -1.360030459 | K119: 2 engines inter-blade distance | L119: yp1\p2 | M119: 0.92 | N119: [-] | O119: 4 engines inter-blade distance | P119: yp1\p2 | Q119: 1.01 | R119: [-]
B120: ="Prop " & Convert!$B$1746 -> Prop Engine 1 | C120: 20.95063848 | D120: -5.781001432 | E120: -1.360030459 | F120: <<<<<< | G120: ="Prop " & Convert!$B$1746 -> Prop Engine 1 | H120: =IF(n_e=1,"N/A",pos_e.p1.x) -> 20.95063848 | I120: =IF(n_e=1,"N/A",-pos_e.p1.y) -> -5.781001432 | J120: =IF(n_e=1,"N/A",pos_W.z -d_e.p/2- pos_e.p2.y*TAN(ggam_W.o*PI()/180)) -> -1.360030459
B121: ="Prop " & Convert!$B$2279 -> Prop Engine 4 | C121: N/A | D121: N/A | E121: N/A | F121: <<<<<< | G121: ="Prop " & Convert!$B$2279 -> Prop Engine 4 | H121: =IF(OR(n_e=1,n_e=2),"N/A",IF(n_e=3,pos_V.x,pos_W.x- 0.25*l_e.p+(pos_e.p3.y*TAN(phi_0.W.o*PI()/180)))) -> N/A | I121: =IF(OR(n_e=1,n_e=2),"N/A",IF(n_e=3,0,IF(n_e=4,pos_e.p1.y + d_e.p.r + M121))) -> N/A | J121: =IF(OR(n_e=1,n_e=2),"N/A",IF(n_e=3,pos_V.z+(d_e.p.r*0.6),pos_W.z-d_e.p/2 + pos_e.p3.y*TAN(ggam_W.o*PI()/180))) -> N/A | K121: 4 engines inter-blade distance | L121: yp3\p4 | M121: 0.26 | N121: [-]
B122: ="Prop " & Convert!$B$2812 -> Prop Engine 1 | C122: N/A | D122: N/A | E122: N/A | F122: <<<<<< | G122: ="Prop " & Convert!$B$2812 -> Prop Engine 1 | H122: =IF(n_e=4,pos_e.p3.x,"N/A") -> N/A | I122: =IF(n_e=4, -pos_e.p3.y, "N/A") -> N/A | J122: =IF(n_e=4,pos_W.z-d_e.p/2- pos_e.p4.y*TAN(ggam_W.o*PI()/180),"N/A") -> N/A
B123: Landing Gear 1 | C123: =H123 -> 24.3659914 | D123: 6.541449744 | E123: =J123 -> -6.073958333 | F123: <<<<<< | G123: Landing Gear 1 | H123: =pos_W.x+ S_W/b_W -> 24.3659914 | I123: =M123*b_W/2 - w_LG/2 -> 6.541449744 | J123: =-(25/24)*d_F -> -6.073958333 | K123: Rel. y-pos of LG on wing half-span | L123: kLG1\b.W\2 | M123: 0.222 | N123: [-]
B124: Landing Gear 3 | C124: =H124 -> 24.3659914 | D124: -6.841449744 | E124: =J124 -> -6.073958333 | F124: <<<<<< | G124: Landing Gear 3 | H124: =pos_LG1.x -> 24.3659914 | I124: =-M123*b_W/2 - w_LG/2 -> -6.841449744 | J124: =-(25/24)*d_F -> -6.073958333
B125: Landing Gear 2 | C125: 5.831 | D125: -0.15 | E125: =J125 -> -6.073958333 | F125: <<<<<< | G125: Landing Gear 2 | H125: =d_F -> 5.831 | I125: =-w_LG/2 -> -0.15 | J125: =-(25/24)*d_F -> -6.073958333
AE131: compare all data with A320

Sheet Convert
A1: Convert to OpenVSP XML | F1: Number of changes: | G1: =COUNTIF(E:E,"No") -> 82
A2: Convert data from Input-Tab to an OpenVSP XML file.
C3: Visualization | E3: Matching
A4: Parameter names | B4: Parameter values | C4: needed? | D4: XML generated from OpenVSP Connect | E4: with file?
A6: xml version | B6: "1.0" | D6: ="<?" & A6 & "=" & B6 & "?>" -> <?xml version="1.0"?> | E6: =IF(D6=F6,"Yes","No") -> Yes | F6: <?xml version="1.0"?>
A7: Vsp_Geometry | D7: ="<" & A7 & ">" -> <Vsp_Geometry> | E7: =IF(D7=F7,"Yes","No") -> Yes | F7: <Vsp_Geometry>
A8: Version | B8: 3 | D8: ="<" & A8 & ">" & TEXT(B8,0) & "</" & A8 & ">" -> <Version>3</Version> | E8: Yes | F8: <Version>3</Version>
A9: Name | B9: =Name_aircraft -> AirbusA330 | D9: ="<" & A9 & ">" & TEXT(B9,0) & "</" & A9 & ">" -> <Name>AirbusA330</Name> | E9: No | F9: <Name>AirbusA320</Name>
A10: CG_Rel_AC_Flag | B10: No | D10: ="<" & A10 & ">" &IF(B10="Yes",1,0) &"</" &A10&">" -> <CG_Rel_AC_Flag>0</CG_Rel_AC_Flag> | E10: Yes | F10: <CG_Rel_AC_Flag>0</CG_Rel_AC_Flag>
A11: CG_X | B11: 10 | D11: ="<" & A11 & ">" & TEXT(B11,"0.000000") & "</" & A11 & ">" -> <CG_X>10.000000</CG_X> | E11: Yes | F11: <CG_X>10.000000</CG_X>
A12: CG_Y | B12: 0 | D12: <CG_Y>0.000000</CG_Y> | E12: Yes | F12: <CG_Y>0.000000</CG_Y>
A13: CG_Z | B13: 0 | D13: <CG_Z>0.000000</CG_Z> | E13: Yes | F13: <CG_Z>0.000000</CG_Z>
A14: CFD_Mesh_Base_Length | B14: 0.5 | D14: <CFD_Mesh_Base_Length>0.500000</CFD_Mesh_Base_Length> | E14: Yes | F14: <CFD_Mesh_Base_Length>0.500000</CFD_Mesh_Base_Length>
A15: CFD_Mesh_Min_Length | B15: 0.1 | D15: <CFD_Mesh_Min_Length>0.100000</CFD_Mesh_Min_Length> | E15: Yes | F15: <CFD_Mesh_Min_Length>0.100000</CFD_Mesh_Min_Length>
A16: CFD_Mesh_Max_Gap | B16: 0.005 | D16: <CFD_Mesh_Max_Gap>0.005000</CFD_Mesh_Max_Gap> | E16: Yes | F16: <CFD_Mesh_Max_Gap>0.005000</CFD_Mesh_Max_Gap>
A17: CFD_Mesh_Num_Circle_Segments | B17: 16 | D17: <CFD_Mesh_Num_Circle_Segments>16.000000</CFD_Mesh_Num_Circle_Segments> | E17: Yes | F17: <CFD_Mesh_Num_Circle_Segments>16.000000</CFD_Mesh_Num_Circle_Segments>
A18: CFD_Mesh_Growth_Ratio | B18: 1.3 | D18: <CFD_Mesh_Growth_Ratio>1.300000</CFD_Mesh_Growth_Ratio> | E18: Yes | F18: <CFD_Mesh_Growth_Ratio>1.300000</CFD_Mesh_Growth_Ratio>
A19: CFD_Mesh_Rigorous_Limiting | B19: 0 | D19: ="<" & A19 & ">" & TEXT(B19,0) & "</" & A19 & ">" -> <CFD_Mesh_Rigorous_Limiting>0</CFD_Mesh_Rigorous_Limiting> | E19: Yes | F19: <CFD_Mesh_Rigorous_Limiting>0</CFD_Mesh_Rigorous_Limiting>
A20: CFD_Far_Field_Scale_X | B20: 4 | D20: ="<" & A20 & ">" & TEXT(B20,"0.000000") & "</" & A20 & ">" -> <CFD_Far_Field_Scale_X>4.000000</CFD_Far_Field_Scale_X> | E20: Yes | F20: <CFD_Far_Field_Scale_X>4.000000</CFD_Far_Field_Scale_X>
A21: CFD_Far_Field_Scale_Y | B21: 4 | D21: ="<" & A21 & ">" & TEXT(B21,"0.000000") & "</" & A21 & ">" -> <CFD_Far_Field_Scale_Y>4.000000</CFD_Far_Field_Scale_Y> | E21: Yes | F21: <CFD_Far_Field_Scale_Y>4.000000</CFD_Far_Field_Scale_Y>
A22: CFD_Far_Field_Scale_Z | B22: 4 | D22: ="<" & A22 & ">" & TEXT(B22,"0.000000") & "</" & A22 & ">" -> <CFD_Far_Field_Scale_Z>4.000000</CFD_Far_Field_Scale_Z> | E22: Yes | F22: <CFD_Far_Field_Scale_Z>4.000000</CFD_Far_Field_Scale_Z>
A23: CFD_Half_Mesh_Flag | B23: No | D23: ="<" & A23 & ">" &IF(B23="Yes",1,0) &"</" &A23&">" -> <CFD_Half_Mesh_Flag>0</CFD_Half_Mesh_Flag> | E23: Yes | F23: <CFD_Half_Mesh_Flag>0</CFD_Half_Mesh_Flag>
A24: CFD_Wake_Angle | B24: 0 | D24: ="<" & A24 & ">" & TEXT(B24,"0.000000") & "</" & A24 & ">" -> <CFD_Wake_Angle>0.000000</CFD_Wake_Angle> | E24: Yes | F24: <CFD_Wake_Angle>0.000000</CFD_Wake_Angle>
A25: CFD_Wake_Scale | B25: 2 | D25: ="<" & A25 & ">" & TEXT(B25,"0.000000") & "</" & A25 & ">" -> <CFD_Wake_Scale>2.000000</CFD_Wake_Scale> | E25: Yes | F25: <CFD_Wake_Scale>2.000000</CFD_Wake_Scale>
A26: VirtWindow_List | D26: ="<" & A26 & ">" -> <VirtWindow_List> | E26: Yes | F26: <VirtWindow_List>
A27: VirtWindow | D27: ="<" & A27 & ">" -> <VirtWindow> | E27: Yes | F27: <VirtWindow>
A28: Back_Img_Scale_W | B28: 1 | D28: ="<" & A28 & ">" & TEXT(B28,"0.000000") & "</" & A28 & ">" -> <Back_Img_Scale_W>1.000000</Back_Img_Scale_W> | E28: Yes | F28: <Back_Img_Scale_W>1.000000</Back_Img_Scale_W>
A29: Back_Img_Scale_H | B29: 1 | D29: ="<" & A29 & ">" & TEXT(B29,"0.000000") & "</" & A29 & ">" -> <Back_Img_Scale_H>1.000000</Back_Img_Scale_H> | E29: Yes | F29: <Back_Img_Scale_H>1.000000</Back_Img_Scale_H>
A30: Back_Img_Offset_X | B30: 0 | D30: ="<" & A30 & ">" & TEXT(B30,"0.000000") & "</" & A30 & ">" -> <Back_Img_Offset_X>0.000000</Back_Img_Offset_X> | E30: Yes | F30: <Back_Img_Offset_X>0.000000</Back_Img_Offset_X>
A31: Back_Img_Offset_Y | B31: 0 | D31: ="<" & A31 & ">" & TEXT(B31,"0.000000") & "</" & A31 & ">" -> <Back_Img_Offset_Y>0.000000</Back_Img_Offset_Y> | E31: Yes | F31: <Back_Img_Offset_Y>0.000000</Back_Img_Offset_Y>
A32: User_View_List | D32: ="<" & A32 & ">" -> <User_View_List> | E32: Yes | F32: <User_View_List>
A33: User_View | D33: ="<" & A33 & ">" -> <User_View> | E33: Yes | F33: <User_View>
A34: Saved_User_View_Flag | B34: No | D34: ="<" & A34 & ">" &IF(B34="Yes",1,0) &"</" &A34&">" -> <Saved_User_View_Flag>0</Saved_User_View_Flag> | E34: Yes | F34: <Saved_User_View_Flag>0</Saved_User_View_Flag>
A35: /User_View | D35: ="<" & A35 & ">" -> </User_View> | E35: Yes | F35: </User_View>
A36: User_View | D36: ="<" & A36 & ">" -> <User_View> | E36: Yes | F36: <User_View>
A37: Saved_User_View_Flag | B37: No | D37: ="<" & A37 & ">" &IF(B37="Yes",1,0) &"</" &A37&">" -> <Saved_User_View_Flag>0</Saved_User_View_Flag> | E37: Yes | F37: <Saved_User_View_Flag>0</Saved_User_View_Flag>
A38: /User_View | D38: ="<" & A38 & ">" -> </User_View> | E38: Yes | F38: </User_View>
A39: User_View | D39: ="<" & A39 & ">" -> <User_View> | E39: Yes | F39: <User_View>
A40: Saved_User_View_Flag | B40: No | D40: ="<" & A40 & ">" &IF(B40="Yes",1,0) &"</" &A40&">" -> <Saved_User_View_Flag>0</Saved_User_View_Flag> | E40: Yes | F40: <Saved_User_View_Flag>0</Saved_User_View_Flag>
A41: /User_View | D41: ="<" & A41 & ">" -> </User_View> | E41: Yes | F41: </User_View>
A42: User_View | D42: ="<" & A42 & ">" -> <User_View> | E42: Yes | F42: <User_View>
A43: Saved_User_View_Flag | B43: No | D43: ="<" & A43 & ">" &IF(B43="Yes",1,0) &"</" &A43&">" -> <Saved_User_View_Flag>0</Saved_User_View_Flag> | E43: Yes | F43: <Saved_User_View_Flag>0</Saved_User_View_Flag>
A44: /User_View | D44: ="<" & A44 & ">" -> </User_View> | E44: Yes | F44: </User_View>
A45: /User_View_List | D45: ="<" & A45 & ">" -> </User_View_List> | E45: Yes | F45: </User_View_List>
A46: /VirtWindow | D46: ="<" & A46 & ">" -> </VirtWindow> | E46: Yes | F46: </VirtWindow>
A47: VirtWindow | D47: ="<" & A47 & ">" -> <VirtWindow> | E47: Yes | F47: <VirtWindow>
A48: Back_Img_Scale_W | B48: 1 | D48: ="<" & A48 & ">" & TEXT(B48,"0.000000") & "</" & A48 & ">" -> <Back_Img_Scale_W>1.000000</Back_Img_Scale_W> | E48: Yes | F48: <Back_Img_Scale_W>1.000000</Back_Img_Scale_W>
A49: Back_Img_Scale_H | B49: 1 | D49: ="<" & A49 & ">" & TEXT(B49,"0.000000") & "</" & A49 & ">" -> <Back_Img_Scale_H>1.000000</Back_Img_Scale_H> | E49: Yes | F49: <Back_Img_Scale_H>1.000000</Back_Img_Scale_H>
A50: Back_Img_Offset_X | B50: 0 | D50: ="<" & A50 & ">" & TEXT(B50,"0.000000") & "</" & A50 & ">" -> <Back_Img_Offset_X>0.000000</Back_Img_Offset_X> | E50: Yes | F50: <Back_Img_Offset_X>0.000000</Back_Img_Offset_X>
A51: Back_Img_Offset_Y | B51: 0 | D51: ="<" & A51 & ">" & TEXT(B51,"0.000000") & "</" & A51 & ">" -> <Back_Img_Offset_Y>0.000000</Back_Img_Offset_Y> | E51: Yes | F51: <Back_Img_Offset_Y>0.000000</Back_Img_Offset_Y>
A52: User_View_List | D52: ="<" & A52 & ">" -> <User_View_List> | E52: Yes | F52: <User_View_List>
A53: User_View | D53: ="<" & A53 & ">" -> <User_View> | E53: Yes | F53: <User_View>
A54: Saved_User_View_Flag | B54: No | D54: ="<" & A54 & ">" &IF(B54="Yes",1,0) &"</" &A54&">" -> <Saved_User_View_Flag>0</Saved_User_View_Flag> | E54: Yes | F54: <Saved_User_View_Flag>0</Saved_User_View_Flag>
A55: /User_View | D55: ="<" & A55 & ">" -> </User_View> | E55: Yes | F55: </User_View>
A56: User_View | D56: ="<" & A56 & ">" -> <User_View> | E56: Yes | F56: <User_View>
A57: Saved_User_View_Flag | B57: No | D57: ="<" & A57 & ">" &IF(B57="Yes",1,0) &"</" &A57&">" -> <Saved_User_View_Flag>0</Saved_User_View_Flag> | E57: Yes | F57: <Saved_User_View_Flag>0</Saved_User_View_Flag>
A58: /User_View | D58: ="<" & A58 & ">" -> </User_View> | E58: Yes | F58: </User_View>
A59: User_View | D59: ="<" & A59 & ">" -> <User_View> | E59: Yes | F59: <User_View>
A60: Saved_User_View_Flag | B60: No | D60: ="<" & A60 & ">" &IF(B60="Yes",1,0) &"</" &A60&">" -> <Saved_User_View_Flag>0</Saved_User_View_Flag> | E60: Yes | F60: <Saved_User_View_Flag>0</Saved_User_View_Flag>
A61: /User_View | D61: ="<" & A61 & ">" -> </User_View> | E61: Yes | F61: </User_View>
A62: User_View | D62: ="<" & A62 & ">" -> <User_View> | E62: Yes | F62: <User_View>
A63: Saved_User_View_Flag | B63: No | D63: ="<" & A63 & ">" &IF(B63="Yes",1,0) &"</" &A63&">" -> <Saved_User_View_Flag>0</Saved_User_View_Flag> | E63: Yes | F63: <Saved_User_View_Flag>0</Saved_User_View_Flag>
A64: /User_View | D64: ="<" & A64 & ">" -> </User_View> | E64: Yes | F64: </User_View>
A65: /User_View_List | D65: ="<" & A65 & ">" -> </User_View_List> | E65: Yes | F65: </User_View_List>
A66: /VirtWindow | D66: ="<" & A66 & ">" -> </VirtWindow> | E66: Yes | F66: </VirtWindow>
A67: VirtWindow | D67: ="<" & A67 & ">" -> <VirtWindow> | E67: Yes | F67: <VirtWindow>
A68: Back_Img_Scale_W | B68: 1 | D68: ="<" & A68 & ">" & TEXT(B68,"0.000000") & "</" & A68 & ">" -> <Back_Img_Scale_W>1.000000</Back_Img_Scale_W> | E68: Yes | F68: <Back_Img_Scale_W>1.000000</Back_Img_Scale_W>
A69: Back_Img_Scale_H | B69: 1 | D69: ="<" & A69 & ">" & TEXT(B69,"0.000000") & "</" & A69 & ">" -> <Back_Img_Scale_H>1.000000</Back_Img_Scale_H> | E69: Yes | F69: <Back_Img_Scale_H>1.000000</Back_Img_Scale_H>
A70: Back_Img_Offset_X | B70: 0 | D70: ="<" & A70 & ">" & TEXT(B70,"0.000000") & "</" & A70 & ">" -> <Back_Img_Offset_X>0.000000</Back_Img_Offset_X> | E70: Yes | F70: <Back_Img_Offset_X>0.000000</Back_Img_Offset_X>
A71: Back_Img_Offset_Y | B71: 0 | D71: ="<" & A71 & ">" & TEXT(B71,"0.000000") & "</" & A71 & ">" -> <Back_Img_Offset_Y>0.000000</Back_Img_Offset_Y> | E71: =IF(D71=F71,"Yes","No") -> Yes | F71: <Back_Img_Offset_Y>0.000000</Back_Img_Offset_Y>
A72: User_View_List | D72: ="<" & A72 & ">" -> <User_View_List> | E72: Yes | F72: <User_View_List>
A73: User_View | D73: ="<" & A73 & ">" -> <User_View> | E73: Yes | F73: <User_View>
A74: Saved_User_View_Flag | B74: No | D74: ="<" & A74 & ">" &IF(B74="Yes",1,0) &"</" &A74&">" -> <Saved_User_View_Flag>0</Saved_User_View_Flag> | E74: Yes | F74: <Saved_User_View_Flag>0</Saved_User_View_Flag>
A75: /User_View | D75: ="<" & A75 & ">" -> </User_View> | E75: Yes | F75: </User_View>
A76: User_View | D76: ="<" & A76 & ">" -> <User_View> | E76: Yes | F76: <User_View>
A77: Saved_User_View_Flag | B77: No | D77: ="<" & A77 & ">" &IF(B77="Yes",1,0) &"</" &A77&">" -> <Saved_User_View_Flag>0</Saved_User_View_Flag> | E77: Yes | F77: <Saved_User_View_Flag>0</Saved_User_View_Flag>
A78: /User_View | D78: ="<" & A78 & ">" -> </User_View> | E78: Yes | F78: </User_View>
A79: User_View | D79: ="<" & A79 & ">" -> <User_View> | E79: Yes | F79: <User_View>
A80: Saved_User_View_Flag | B80: No | D80: ="<" & A80 & ">" &IF(B80="Yes",1,0) &"</" &A80&">" -> <Saved_User_View_Flag>0</Saved_User_View_Flag> | E80: Yes | F80: <Saved_User_View_Flag>0</Saved_User_View_Flag>
A81: /User_View | D81: ="<" & A81 & ">" -> </User_View> | E81: Yes | F81: </User_View>
A82: User_View | D82: ="<" & A82 & ">" -> <User_View> | E82: Yes | F82: <User_View>
A83: Saved_User_View_Flag | B83: No | D83: ="<" & A83 & ">" &IF(B83="Yes",1,0) &"</" &A83&">" -> <Saved_User_View_Flag>0</Saved_User_View_Flag> | E83: Yes | F83: <Saved_User_View_Flag>0</Saved_User_View_Flag>
A84: /User_View | D84: ="<" & A84 & ">" -> </User_View> | E84: Yes | F84: </User_View>
A85: /User_View_List | D85: ="<" & A85 & ">" -> </User_View_List> | E85: Yes | F85: </User_View_List>
A86: /VirtWindow | D86: ="<" & A86 & ">" -> </VirtWindow> | E86: Yes | F86: </VirtWindow>
A87: VirtWindow | D87: ="<" & A87 & ">" -> <VirtWindow> | E87: Yes | F87: <VirtWindow>
A88: Back_Img_Scale_W | B88: 1 | D88: ="<" & A88 & ">" & TEXT(B88,"0.000000") & "</" & A88 & ">" -> <Back_Img_Scale_W>1.000000</Back_Img_Scale_W> | E88: Yes | F88: <Back_Img_Scale_W>1.000000</Back_Img_Scale_W>
A89: Back_Img_Scale_H | B89: 1 | D89: ="<" & A89 & ">" & TEXT(B89,"0.000000") & "</" & A89 & ">" -> <Back_Img_Scale_H>1.000000</Back_Img_Scale_H> | E89: Yes | F89: <Back_Img_Scale_H>1.000000</Back_Img_Scale_H>
A90: Back_Img_Offset_X | B90: 0 | D90: ="<" & A90 & ">" & TEXT(B90,"0.000000") & "</" & A90 & ">" -> <Back_Img_Offset_X>0.000000</Back_Img_Offset_X> | E90: Yes | F90: <Back_Img_Offset_X>0.000000</Back_Img_Offset_X>
A91: Back_Img_Offset_Y | B91: 0 | D91: ="<" & A91 & ">" & TEXT(B91,"0.000000") & "</" & A91 & ">" -> <Back_Img_Offset_Y>0.000000</Back_Img_Offset_Y> | E91: Yes | F91: <Back_Img_Offset_Y>0.000000</Back_Img_Offset_Y>
A92: User_View_List | D92: ="<" & A92 & ">" -> <User_View_List> | E92: Yes | F92: <User_View_List>
A93: User_View | D93: ="<" & A93 & ">" -> <User_View> | E93: Yes | F93: <User_View>
A94: Saved_User_View_Flag | B94: No | D94: ="<" & A94 & ">" &IF(B94="Yes",1,0) &"</" &A94&">" -> <Saved_User_View_Flag>0</Saved_User_View_Flag> | E94: Yes | F94: <Saved_User_View_Flag>0</Saved_User_View_Flag>
A95: /User_View | D95: ="<" & A95 & ">" -> </User_View> | E95: Yes | F95: </User_View>
A96: User_View | D96: ="<" & A96 & ">" -> <User_View> | E96: Yes | F96: <User_View>
A97: Saved_User_View_Flag | B97: No | D97: ="<" & A97 & ">" &IF(B97="Yes",1,0) &"</" &A97&">" -> <Saved_User_View_Flag>0</Saved_User_View_Flag> | E97: Yes | F97: <Saved_User_View_Flag>0</Saved_User_View_Flag>
A98: /User_View | D98: ="<" & A98 & ">" -> </User_View> | E98: Yes | F98: </User_View> | L98: EXTRA AIRFOIL!
A99: User_View | D99: ="<" & A99 & ">" -> <User_View> | E99: Yes | F99: <User_View>
A100: Saved_User_View_Flag | B100: No | D100: ="<" & A100 & ">" &IF(B100="Yes",1,0) &"</" &A100&">" -> <Saved_User_View_Flag>0</Saved_User_View_Flag> | E100: Yes | F100: <Saved_User_View_Flag>0</Saved_User_View_Flag>
A101: /User_View | D101: ="<" & A101 & ">" -> </User_View> | E101: Yes | F101: </User_View>
A102: User_View | D102: ="<" & A102 & ">" -> <User_View> | E102: Yes | F102: <User_View>
A103: Saved_User_View_Flag | B103: No | D103: ="<" & A103 & ">" &IF(B103="Yes",1,0) &"</" &A103&">" -> <Saved_User_View_Flag>0</Saved_User_View_Flag> | E103: Yes | F103: <Saved_User_View_Flag>0</Saved_User_View_Flag>
A104: /User_View | D104: ="<" & A104 & ">" -> </User_View> | E104: Yes | F104: </User_View>
A105: /User_View_List | D105: ="<" & A105 & ">" -> </User_View_List> | E105: Yes | F105: </User_View_List>
A106: /VirtWindow | D106: ="<" & A106 & ">" -> </VirtWindow> | E106: Yes | F106: </VirtWindow>
A107: VirtWindow | D107: ="<" & A107 & ">" -> <VirtWindow> | E107: Yes | F107: <VirtWindow>
A108: Back_Img_Scale_W | B108: 1 | D108: ="<" & A108 & ">" & TEXT(B108,"0.000000") & "</" & A108 & ">" -> <Back_Img_Scale_W>1.000000</Back_Img_Scale_W> | E108: Yes | F108: <Back_Img_Scale_W>1.000000</Back_Img_Scale_W>
A109: Back_Img_Scale_H | B109: 1 | D109: ="<" & A109 & ">" & TEXT(B109,"0.000000") & "</" & A109 & ">" -> <Back_Img_Scale_H>1.000000</Back_Img_Scale_H> | E109: Yes | F109: <Back_Img_Scale_H>1.000000</Back_Img_Scale_H>
A110: Back_Img_Offset_X | B110: 0 | D110: ="<" & A110 & ">" & TEXT(B110,"0.000000") & "</" & A110 & ">" -> <Back_Img_Offset_X>0.000000</Back_Img_Offset_X> | E110: Yes | F110: <Back_Img_Offset_X>0.000000</Back_Img_Offset_X>
A111: Back_Img_Offset_Y | B111: 0 | D111: ="<" & A111 & ">" & TEXT(B111,"0.000000") & "</" & A111 & ">" -> <Back_Img_Offset_Y>0.000000</Back_Img_Offset_Y> | E111: Yes | F111: <Back_Img_Offset_Y>0.000000</Back_Img_Offset_Y>
A112: User_View_List | D112: ="<" & A112 & ">" -> <User_View_List> | E112: Yes | F112: <User_View_List>
A113: User_View | D113: ="<" & A113 & ">" -> <User_View> | E113: Yes | F113: <User_View>
A114: Saved_User_View_Flag | B114: No | D114: ="<" & A114 & ">" &IF(B114="Yes",1,0) &"</" &A114&">" -> <Saved_User_View_Flag>0</Saved_User_View_Flag> | E114: Yes | F114: <Saved_User_View_Flag>0</Saved_User_View_Flag>
A115: /User_View | D115: ="<" & A115 & ">" -> </User_View> | E115: Yes | F115: </User_View>
A116: User_View | D116: ="<" & A116 & ">" -> <User_View> | E116: Yes | F116: <User_View>
A117: Saved_User_View_Flag | B117: No | D117: ="<" & A117 & ">" &IF(B117="Yes",1,0) &"</" &A117&">" -> <Saved_User_View_Flag>0</Saved_User_View_Flag> | E117: Yes | F117: <Saved_User_View_Flag>0</Saved_User_View_Flag>
A118: /User_View | D118: ="<" & A118 & ">" -> </User_View> | E118: Yes | F118: </User_View>
A119: User_View | D119: ="<" & A119 & ">" -> <User_View> | E119: Yes | F119: <User_View>
A120: Saved_User_View_Flag | B120: No | D120: ="<" & A120 & ">" &IF(B120="Yes",1,0) &"</" &A120&">" -> <Saved_User_View_Flag>0</Saved_User_View_Flag> | E120: Yes | F120: <Saved_User_View_Flag>0</Saved_User_View_Flag>
A121: /User_View | D121: ="<" & A121 & ">" -> </User_View> | E121: Yes | F121: </User_View>
A122: User_View | D122: ="<" & A122 & ">" -> <User_View> | E122: Yes | F122: <User_View>
A123: Saved_User_View_Flag | B123: No | D123: ="<" & A123 & ">" &IF(B123="Yes",1,0) &"</" &A123&">" -> <Saved_User_View_Flag>0</Saved_User_View_Flag> | E123: Yes | F123: <Saved_User_View_Flag>0</Saved_User_View_Flag>
A124: /User_View | D124: ="<" & A124 & ">" -> </User_View> | E124: Yes | F124: </User_View>
A125: /User_View_List | D125: ="<" & A125 & ">" -> </User_View_List> | E125: Yes | F125: </User_View_List>
A126: /VirtWindow | D126: ="<" & A126 & ">" -> </VirtWindow> | E126: Yes | F126: </VirtWindow>
A127: VirtWindow | D127: ="<" & A127 & ">" -> <VirtWindow> | E127: Yes | F127: <VirtWindow>
A128: Back_Img_Scale_W | B128: 1 | D128: ="<" & A128 & ">" & TEXT(B128,"0.000000") & "</" & A128 & ">" -> <Back_Img_Scale_W>1.000000</Back_Img_Scale_W> | E128: Yes | F128: <Back_Img_Scale_W>1.000000</Back_Img_Scale_W>
A129: Back_Img_Scale_H | B129: 1 | D129: ="<" & A129 & ">" & TEXT(B129,"0.000000") & "</" & A129 & ">" -> <Back_Img_Scale_H>1.000000</Back_Img_Scale_H> | E129: Yes | F129: <Back_Img_Scale_H>1.000000</Back_Img_Scale_H>
A130: Back_Img_Offset_X | B130: 0 | D130: ="<" & A130 & ">" & TEXT(B130,"0.000000") & "</" & A130 & ">" -> <Back_Img_Offset_X>0.000000</Back_Img_Offset_X> | E130: Yes | F130: <Back_Img_Offset_X>0.000000</Back_Img_Offset_X>
A131: Back_Img_Offset_Y | B131: 0 | D131: ="<" & A131 & ">" & TEXT(B131,"0.000000") & "</" & A131 & ">" -> <Back_Img_Offset_Y>0.000000</Back_Img_Offset_Y> | E131: Yes | F131: <Back_Img_Offset_Y>0.000000</Back_Img_Offset_Y>
A132: User_View_List | D132: ="<" & A132 & ">" -> <User_View_List> | E132: Yes | F132: <User_View_List>
A133: User_View | D133: ="<" & A133 & ">" -> <User_View> | E133: Yes | F133: <User_View>
A134: Saved_User_View_Flag | B134: No | D134: ="<" & A134 & ">" &IF(B134="Yes",1,0) &"</" &A134&">" -> <Saved_User_View_Flag>0</Saved_User_View_Flag> | E134: Yes | F134: <Saved_User_View_Flag>0</Saved_User_View_Flag>
A135: /User_View | D135: ="<" & A135 & ">" -> </User_View> | E135: =IF(D135=F135,"Yes","No") -> Yes | F135: </User_View>
A136: User_View | D136: ="<" & A136 & ">" -> <User_View> | E136: Yes | F136: <User_View>
A137: Saved_User_View_Flag | B137: No | D137: ="<" & A137 & ">" &IF(B137="Yes",1,0) &"</" &A137&">" -> <Saved_User_View_Flag>0</Saved_User_View_Flag> | E137: Yes | F137: <Saved_User_View_Flag>0</Saved_User_View_Flag>
A138: /User_View | D138: ="<" & A138 & ">" -> </User_View> | E138: Yes | F138: </User_View>
A139: User_View | D139: ="<" & A139 & ">" -> <User_View> | E139: Yes | F139: <User_View>
A140: Saved_User_View_Flag | B140: No | D140: ="<" & A140 & ">" &IF(B140="Yes",1,0) &"</" &A140&">" -> <Saved_User_View_Flag>0</Saved_User_View_Flag> | E140: Yes | F140: <Saved_User_View_Flag>0</Saved_User_View_Flag>
A141: /User_View | D141: ="<" & A141 & ">" -> </User_View> | E141: Yes | F141: </User_View>
A142: User_View | D142: ="<" & A142 & ">" -> <User_View> | E142: Yes | F142: <User_View>
A143: Saved_User_View_Flag | B143: No | D143: ="<" & A143 & ">" &IF(B143="Yes",1,0) &"</" &A143&">" -> <Saved_User_View_Flag>0</Saved_User_View_Flag> | E143: Yes | F143: <Saved_User_View_Flag>0</Saved_User_View_Flag>
A144: /User_View | D144: ="<" & A144 & ">" -> </User_View> | E144: Yes | F144: </User_View>
A145: /User_View_List | D145: ="<" & A145 & ">" -> </User_View_List> | E145: Yes | F145: </User_View_List>
A146: /VirtWindow | D146: ="<" & A146 & ">" -> </VirtWindow> | E146: Yes | F146: </VirtWindow>
A147: VirtWindow | D147: ="<" & A147 & ">" -> <VirtWindow> | E147: Yes | F147: <VirtWindow>
A148: Back_Img_Scale_W | B148: 1 | D148: ="<" & A148 & ">" & TEXT(B148,"0.000000") & "</" & A148 & ">" -> <Back_Img_Scale_W>1.000000</Back_Img_Scale_W> | E148: Yes | F148: <Back_Img_Scale_W>1.000000</Back_Img_Scale_W>
A149: Back_Img_Scale_H | B149: 1 | D149: ="<" & A149 & ">" & TEXT(B149,"0.000000") & "</" & A149 & ">" -> <Back_Img_Scale_H>1.000000</Back_Img_Scale_H> | E149: Yes | F149: <Back_Img_Scale_H>1.000000</Back_Img_Scale_H>
A150: Back_Img_Offset_X | B150: 0 | D150: ="<" & A150 & ">" & TEXT(B150,"0.000000") & "</" & A150 & ">" -> <Back_Img_Offset_X>0.000000</Back_Img_Offset_X> | E150: Yes | F150: <Back_Img_Offset_X>0.000000</Back_Img_Offset_X>
A151: Back_Img_Offset_Y | B151: 0 | D151: ="<" & A151 & ">" & TEXT(B151,"0.000000") & "</" & A151 & ">" -> <Back_Img_Offset_Y>0.000000</Back_Img_Offset_Y> | E151: Yes | F151: <Back_Img_Offset_Y>0.000000</Back_Img_Offset_Y>
A152: User_View_List | D152: ="<" & A152 & ">" -> <User_View_List> | E152: Yes | F152: <User_View_List>
A153: User_View | D153: ="<" & A153 & ">" -> <User_View> | E153: Yes | F153: <User_View>
A154: Saved_User_View_Flag | B154: No | D154: ="<" & A154 & ">" &IF(B154="Yes",1,0) &"</" &A154&">" -> <Saved_User_View_Flag>0</Saved_User_View_Flag> | E154: Yes | F154: <Saved_User_View_Flag>0</Saved_User_View_Flag>
A155: /User_View | D155: ="<" & A155 & ">" -> </User_View> | E155: Yes | F155: </User_View>
A156: User_View | D156: ="<" & A156 & ">" -> <User_View> | E156: Yes | F156: <User_View>
A157: Saved_User_View_Flag | B157: No | D157: ="<" & A157 & ">" &IF(B157="Yes",1,0) &"</" &A157&">" -> <Saved_User_View_Flag>0</Saved_User_View_Flag> | E157: Yes | F157: <Saved_User_View_Flag>0</Saved_User_View_Flag>
A158: /User_View | D158: ="<" & A158 & ">" -> </User_View> | E158: Yes | F158: </User_View>
A159: User_View | D159: ="<" & A159 & ">" -> <User_View> | E159: Yes | F159: <User_View>
A160: Saved_User_View_Flag | B160: No | D160: ="<" & A160 & ">" &IF(B160="Yes",1,0) &"</" &A160&">" -> <Saved_User_View_Flag>0</Saved_User_View_Flag> | E160: Yes | F160: <Saved_User_View_Flag>0</Saved_User_View_Flag>
A161: /User_View | D161: ="<" & A161 & ">" -> </User_View> | E161: Yes | F161: </User_View>
A162: User_View | D162: ="<" & A162 & ">" -> <User_View> | E162: Yes | F162: <User_View>
A163: Saved_User_View_Flag | B163: No | D163: ="<" & A163 & ">" &IF(B163="Yes",1,0) &"</" &A163&">" -> <Saved_User_View_Flag>0</Saved_User_View_Flag> | E163: Yes | F163: <Saved_User_View_Flag>0</Saved_User_View_Flag>
A164: /User_View | D164: ="<" & A164 & ">" -> </User_View> | E164: Yes | F164: </User_View>
A165: /User_View_List | D165: ="<" & A165 & ">" -> </User_View_List> | E165: Yes | F165: </User_View_List>
A166: /VirtWindow | D166: ="<" & A166 & ">" -> </VirtWindow> | E166: Yes | F166: </VirtWindow>
A167: VirtWindow | D167: ="<" & A167 & ">" -> <VirtWindow> | E167: Yes | F167: <VirtWindow>
A168: Back_Img_Scale_W | B168: 1 | D168: ="<" & A168 & ">" & TEXT(B168,"0.000000") & "</" & A168 & ">" -> <Back_Img_Scale_W>1.000000</Back_Img_Scale_W> | E168: Yes | F168: <Back_Img_Scale_W>1.000000</Back_Img_Scale_W>
A169: Back_Img_Scale_H | B169: 1 | D169: ="<" & A169 & ">" & TEXT(B169,"0.000000") & "</" & A169 & ">" -> <Back_Img_Scale_H>1.000000</Back_Img_Scale_H> | E169: Yes | F169: <Back_Img_Scale_H>1.000000</Back_Img_Scale_H>
A170: Back_Img_Offset_X | B170: 0 | D170: ="<" & A170 & ">" & TEXT(B170,"0.000000") & "</" & A170 & ">" -> <Back_Img_Offset_X>0.000000</Back_Img_Offset_X> | E170: Yes | F170: <Back_Img_Offset_X>0.000000</Back_Img_Offset_X>
A171: Back_Img_Offset_Y | B171: 0 | D171: ="<" & A171 & ">" & TEXT(B171,"0.000000") & "</" & A171 & ">" -> <Back_Img_Offset_Y>0.000000</Back_Img_Offset_Y> | E171: Yes | F171: <Back_Img_Offset_Y>0.000000</Back_Img_Offset_Y>
A172: User_View_List | D172: ="<" & A172 & ">" -> <User_View_List> | E172: Yes | F172: <User_View_List>
A173: User_View | D173: ="<" & A173 & ">" -> <User_View> | E173: Yes | F173: <User_View>
A174: Saved_User_View_Flag | B174: No | D174: ="<" & A174 & ">" &IF(B174="Yes",1,0) &"</" &A174&">" -> <Saved_User_View_Flag>0</Saved_User_View_Flag> | E174: Yes | F174: <Saved_User_View_Flag>0</Saved_User_View_Flag>
A175: /User_View | D175: ="<" & A175 & ">" -> </User_View> | E175: Yes | F175: </User_View>
A176: User_View | D176: ="<" & A176 & ">" -> <User_View> | E176: Yes | F176: <User_View>
A177: Saved_User_View_Flag | B177: No | D177: ="<" & A177 & ">" &IF(B177="Yes",1,0) &"</" &A177&">" -> <Saved_User_View_Flag>0</Saved_User_View_Flag> | E177: Yes | F177: <Saved_User_View_Flag>0</Saved_User_View_Flag>
A178: /User_View | D178: ="<" & A178 & ">" -> </User_View> | E178: Yes | F178: </User_View>
A179: User_View | D179: ="<" & A179 & ">" -> <User_View> | E179: Yes | F179: <User_View>
A180: Saved_User_View_Flag | B180: No | D180: ="<" & A180 & ">" &IF(B180="Yes",1,0) &"</" &A180&">" -> <Saved_User_View_Flag>0</Saved_User_View_Flag> | E180: Yes | F180: <Saved_User_View_Flag>0</Saved_User_View_Flag>
A181: /User_View | D181: ="<" & A181 & ">" -> </User_View> | E181: Yes | F181: </User_View>
A182: User_View | D182: ="<" & A182 & ">" -> <User_View> | E182: Yes | F182: <User_View>
A183: Saved_User_View_Flag | B183: No | D183: ="<" & A183 & ">" &IF(B183="Yes",1,0) &"</" &A183&">" -> <Saved_User_View_Flag>0</Saved_User_View_Flag> | E183: Yes | F183: <Saved_User_View_Flag>0</Saved_User_View_Flag>
A184: /User_View | D184: ="<" & A184 & ">" -> </User_View> | E184: Yes | F184: </User_View>
A185: /User_View_List | D185: ="<" & A185 & ">" -> </User_View_List> | E185: Yes | F185: </User_View_List>
A186: /VirtWindow | D186: ="<" & A186 & ">" -> </VirtWindow> | E186: Yes | F186: </VirtWindow>
A187: VirtWindow | D187: ="<" & A187 & ">" -> <VirtWindow> | E187: Yes | F187: <VirtWindow>
A188: Back_Img_Scale_W | B188: 1 | D188: ="<" & A188 & ">" & TEXT(B188,"0.000000") & "</" & A188 & ">" -> <Back_Img_Scale_W>1.000000</Back_Img_Scale_W> | E188: Yes | F188: <Back_Img_Scale_W>1.000000</Back_Img_Scale_W>
A189: Back_Img_Scale_H | B189: 1 | D189: ="<" & A189 & ">" & TEXT(B189,"0.000000") & "</" & A189 & ">" -> <Back_Img_Scale_H>1.000000</Back_Img_Scale_H> | E189: Yes | F189: <Back_Img_Scale_H>1.000000</Back_Img_Scale_H>
A190: Back_Img_Offset_X | B190: 0 | D190: ="<" & A190 & ">" & TEXT(B190,"0.000000") & "</" & A190 & ">" -> <Back_Img_Offset_X>0.000000</Back_Img_Offset_X> | E190: Yes | F190: <Back_Img_Offset_X>0.000000</Back_Img_Offset_X>
A191: Back_Img_Offset_Y | B191: 0 | D191: ="<" & A191 & ">" & TEXT(B191,"0.000000") & "</" & A191 & ">" -> <Back_Img_Offset_Y>0.000000</Back_Img_Offset_Y> | E191: Yes | F191: <Back_Img_Offset_Y>0.000000</Back_Img_Offset_Y>
A192: User_View_List | D192: ="<" & A192 & ">" -> <User_View_List> | E192: Yes | F192: <User_View_List>
A193: User_View | D193: ="<" & A193 & ">" -> <User_View> | E193: Yes | F193: <User_View>
A194: Saved_User_View_Flag | B194: No | D194: ="<" & A194 & ">" &IF(B194="Yes",1,0) &"</" &A194&">" -> <Saved_User_View_Flag>0</Saved_User_View_Flag> | E194: Yes | F194: <Saved_User_View_Flag>0</Saved_User_View_Flag>
A195: /User_View | D195: ="<" & A195 & ">" -> </User_View> | E195: Yes | F195: </User_View>
A196: User_View | D196: ="<" & A196 & ">" -> <User_View> | E196: Yes | F196: <User_View>
A197: Saved_User_View_Flag | B197: No | D197: ="<" & A197 & ">" &IF(B197="Yes",1,0) &"</" &A197&">" -> <Saved_User_View_Flag>0</Saved_User_View_Flag> | E197: Yes | F197: <Saved_User_View_Flag>0</Saved_User_View_Flag>
A198: /User_View | D198: ="<" & A198 & ">" -> </User_View> | E198: Yes | F198: </User_View>
A199: User_View | D199: ="<" & A199 & ">" -> <User_View> | E199: =IF(D199=F199,"Yes","No") -> Yes | F199: <User_View>
A200: Saved_User_View_Flag | B200: No | D200: ="<" & A200 & ">" &IF(B200="Yes",1,0) &"</" &A200&">" -> <Saved_User_View_Flag>0</Saved_User_View_Flag> | E200: Yes | F200: <Saved_User_View_Flag>0</Saved_User_View_Flag>
A201: /User_View | D201: ="<" & A201 & ">" -> </User_View> | E201: Yes | F201: </User_View>
... 3400 more rows
